Workbook

Sheet Form
C1: Blue Solar charge controller MPPT | M1: =IF(J3=6,INDEX(Language!B4:G41,29,6),IF(J3=5,INDEX(Language!B4:F35,29,1),IF(J3=4,INDEX(Language!B4:F35,29,2),IF(J3=3,INDEX(Language!B4:F35,29,3),IF(J3=2,INDEX(Language!B4:F35,29,4),INDEX(Language!B4:F35,29,5)))))) -> Faixa de voltagem | U1: =IF(J3=6,INDEX(Language!B4:G41,30,6),IF(J3=5,INDEX(Language!B4:F35,30,1),IF(J3=4,INDEX(Language!B4:F35,30,2),IF(J3=3,INDEX(Language!B4:F35,30,3),IF(J3=2,INDEX(Language!B4:F35,30,4),INDEX(Language!B4:F35,30,5)))))) -> Faixa de corrente
J3: 6
B4: =IF(J3=6,INDEX(Language!B4:G35,1,6),IF(J3=5,INDEX(Language!B4:G35,1,1),IF(J3=4,INDEX(Language!B4:G35,1,2),IF(J3=3,INDEX(Language!B4:G35,1,3),IF(J3=2,INDEX(Language!B4:G35,1,4),INDEX(Language!B4:G35,1,5)))))) -> Módulo FV | D4: 23
B6: =IF(J3=6,INDEX(Language!B4:G35,2,6),IF(J3=5,INDEX(Language!B4:F35,2,1),IF(J3=4,INDEX(Language!B4:F35,2,2),IF(J3=3,INDEX(Language!B4:F35,2,3),IF(J3=2,INDEX(Language!B4:F35,2,4),INDEX(Language!B4:F35,2,5)))))) -> Quantos módulos? Em serie: | D6: 2 | G6: =IF(J3=6,INDEX(Language!B4:G35,3,6),IF(J3=5,INDEX(Language!B4:F35,3,1),IF(J3=4,INDEX(Language!B4:F35,3,2),IF(J3=3,INDEX(Language!B4:F35,3,3),IF(J3=2,INDEX(Language!B4:F35,3,4),INDEX(Language!B4:F35,3,5)))))) -> Em paralelo | H6: 3
B8: =IF(J3=6,INDEX(Language!B4:G35,4,6),IF(J3=5,INDEX(Language!B4:F35,4,1),IF(J3=4,INDEX(Language!B4:F35,4,2),IF(J3=3,INDEX(Language!B4:F35,4,3),IF(J3=2,INDEX(Language!B4:F35,4,4),INDEX(Language!B4:F35,4,5)))))) -> Potência total FV @STC | D8: =D6*H6*INDEX(Modules!B3:J34,Form!D4,3) -> 2400 | E8: =IF(J3=6,INDEX(Language!B4:G35,5,6),IF(J3=5,INDEX(Language!B4:F35,5,1),IF(J3=4,INDEX(Language!B4:F35,5,2),IF(J3=3,INDEX(Language!B4:F35,5,3),IF(J3=2,INDEX(Language!B4:F35,5,4),INDEX(Language!B4:F35,5,5)))))) -> Wp
B9: =IF(G24="N.A.","",IF('Calculation table'!C49>1.3,IF(J3=6,INDEX(Language!B4:G51,39,6),IF(J3=5,INDEX(Language!B4:F42,39,1),IF(J3=4,INDEX(Language!B4:F42,39,2),IF(J3=3,INDEX(Language!B4:F42,39,3),IF(J3=2,INDEX(Language!B4:F42,39,4),INDEX(Language!B4:F42,39,5)))))),"")) -> 
B10: =IF(G25="N.A.","",IF('Calculation table'!E50=TRUE,IF(J3=6,INDEX(Language!B4:G52,49,6),IF(J3=5,INDEX(Language!B4:F52,49,1),IF(J3=4,INDEX(Language!B4:F52,49,2),IF(J3=3,INDEX(Language!B4:F52,49,3),IF(J3=2,INDEX(Language!B4:F52,49,4),INDEX(Language!B4:F52,49,5)))))),"")) -> 
B11: =IF(J3=6,INDEX(Language!B4:G35,6,6),IF(J3=5,INDEX(Language!B4:F35,6,1),IF(J3=4,INDEX(Language!B4:F35,6,2),IF(J3=3,INDEX(Language!B4:F35,6,3),IF(J3=2,INDEX(Language!B4:F35,6,4),INDEX(Language!B4:F35,6,5)))))) -> Temp. módulo FV | C11: °C | D11: =IF(J3=6,INDEX(Language!B4:G35,7,6),IF(J3=5,INDEX(Language!B4:F35,7,1),IF(J3=4,INDEX(Language!B4:F35,7,2),IF(J3=3,INDEX(Language!B4:F35,7,3),IF(J3=2,INDEX(Language!B4:F35,7,4),INDEX(Language!B4:F35,7,5)))))) -> Min. | E11: =IF(B12=1, F12, ((F12)*9/5)+32) -> 0 | F11: =IF(B12=1, "°C", "°F") -> °C | G11: =IF(J3=6,INDEX(Language!B4:G35,8,6),IF(J3=5,INDEX(Language!B4:F35,8,1),IF(J3=4,INDEX(Language!B4:F35,8,2),IF(J3=3,INDEX(Language!B4:F35,8,3),IF(J3=2,INDEX(Language!B4:F35,8,4),INDEX(Language!B4:F35,8,5)))))) -> Max. | H11: =IF(B12=1, H12, (H12*9/5)+32) -> 70 | I11: =IF(B12=1, "°C", "°F") -> °C | N11: 2.5
B12: 1 | C12: °F | E12: 40 | F12: =E12-40 -> 0 | H12: 70 | M12: =INDEX(Regulator!K2:N18,Form!$D$13,1) -> 12 | N12: 4
B13: =IF(J3=6,INDEX(Language!B4:G35,9,6),IF(J3=5,INDEX(Language!B4:F35,9,1),IF(J3=4,INDEX(Language!B4:F35,9,2),IF(J3=3,INDEX(Language!B4:F35,9,3),IF(J3=2,INDEX(Language!B4:F35,9,4),INDEX(Language!B4:F35,9,5)))))) -> Controlador | D13: 9 | M13: =INDEX(Regulator!K2:N18,Form!$D$13,2) -> 24 | N13: 6
M14: =INDEX(Regulator!K2:N18,Form!$D$13,3) -> 36 | N14: 10
B15: =IF(J3=6,INDEX(Language!B4:G35,10,6),IF(J3=5,INDEX(Language!B4:F35,10,1),IF(J3=4,INDEX(Language!B4:F35,10,2),IF(J3=3,INDEX(Language!B4:F35,10,3),IF(J3=2,INDEX(Language!B4:F35,10,4),INDEX(Language!B4:F35,10,5)))))) -> Voltagem do sistema | E15: 4 | G15: Volt | M15: =INDEX(Regulator!K2:N18,Form!$D$13,4) -> 48 | N15: 16
N16: 25
B17: =IF(J3=6,INDEX(Language!B4:G35,31,6),IF(J3=5,INDEX(Language!B4:F35,31,1),IF(J3=4,INDEX(Language!B4:F35,31,2),IF(J3=3,INDEX(Language!B4:F35,31,3),IF(J3=2,INDEX(Language!B4:F35,31,4),INDEX(Language!B4:F35,31,5)))))) -> Comprimento do cabo entre o modulo e o MPPT * | H17: 10 | J17: 3 | N17: 35
B18: =IF(J3=6,INDEX(Language!B4:G35,32,6),IF(J3=5,INDEX(Language!B4:F35,32,1),IF(J3=4,INDEX(Language!B4:F35,32,2),IF(J3=3,INDEX(Language!B4:F35,32,3),IF(J3=2,INDEX(Language!B4:F35,32,4),INDEX(Language!B4:F35,32,5)))))) -> Corte transversal: | H18: =INDEX(N11:N17,J17,1) -> 6
B19: =IF(J3=6,INDEX(Language!B4:G36,33,6),IF(J3=5,INDEX(Language!B4:F36,33,1),IF(J3=4,INDEX(Language!B4:F36,33,2),IF(J3=3,INDEX(Language!B4:F36,33,3),IF(J3=2,INDEX(Language!B4:F36,33,4),INDEX(Language!B4:F36,33,5)))))) -> * Distância de um só cabo
B20: =IF(J3=6,INDEX(Language!B4:G36,11,6),IF(J3=5,INDEX(Language!B4:F35,11,1),IF(J3=4,INDEX(Language!B4:F35,11,2),IF(J3=3,INDEX(Language!B4:F35,11,3),IF(J3=2,INDEX(Language!B4:F35,11,4),INDEX(Language!B4:F35,11,5)))))) -> Voltagem máxima de entrada | G20: =INDEX(Regulator!$B$2:$H$18,Form!$D$13,7) -> 150
B21: =IF(J3=6,INDEX(Language!B4:G36,12,6),IF(J3=5,INDEX(Language!B4:F35,12,1),IF(J3=4,INDEX(Language!B4:F35,12,2),IF(J3=3,INDEX(Language!B4:F35,12,3),IF(J3=2,INDEX(Language!B4:F35,12,4),INDEX(Language!B4:F35,12,5)))))) -> Voltagem max FV@Temp min | G21: ='Calculation table'!F30 -> 106.572
B22: =IF(J3=6,INDEX(Language!B4:G36,13,6),IF(J3=5,INDEX(Language!B4:F35,13,1),IF(J3=4,INDEX(Language!B4:F35,13,2),IF(J3=3,INDEX(Language!B4:F35,13,3),IF(J3=2,INDEX(Language!B4:F35,13,4),INDEX(Language!B4:F35,13,5)))))) -> Voltagem min. de entrada @ MPPT | G22: ='Calculation table'!C20 -> 49
B23: =IF(J3=6,INDEX(Language!B4:G36,14,6),IF(J3=5,INDEX(Language!B4:F35,14,1),IF(J3=4,INDEX(Language!B4:F35,14,2),IF(J3=3,INDEX(Language!B4:F35,14,3),IF(J3=2,INDEX(Language!B4:F35,14,4),INDEX(Language!B4:F35,14,5)))))) -> Voltagem min. FV @ Temperatura max. | G23: ='Calculation table'!K37 -> 69.10176787
B24: =IF(J3=6,INDEX(Language!B4:G36,15,6),IF(J3=5,INDEX(Language!B4:F35,15,1),IF(J3=4,INDEX(Language!B4:F35,15,2),IF(J3=3,INDEX(Language!B4:F35,15,3),IF(J3=2,INDEX(Language!B4:F35,15,4),INDEX(Language!B4:F35,15,5)))))) -> Corrente max. de saida | G24: =INDEX(Regulator!B2:P18,Form!$D$13,15) -> 45
B25: =IF(J3=6,INDEX(Language!B4:G36,16,6),IF(J3=5,INDEX(Language!B4:F35,16,1),IF(J3=4,INDEX(Language!B4:F35,16,2),IF(J3=3,INDEX(Language!B4:F35,16,3),IF(J3=2,INDEX(Language!B4:F35,16,4),INDEX(Language!B4:F35,16,5)))))) -> Corrente max. @ MPPT temp. min. | G25: =IF('Calculation table'!E20=0,"N.A.",'Calculation table'!F40) -> 45
G26: =IF(G25="N.A.","",IF('Calculation table'!F40=G24,IF(J3=6,INDEX(Language!B4:G36,27,6),IF(J3=5,INDEX(Language!B4:F35,27,1),IF(J3=4,INDEX(Language!B4:F35,27,2),IF(J3=3,INDEX(Language!B4:F35,27,3),IF(J3=2,INDEX(Language!B4:F35,27,4),INDEX(Language!B4:F35,27,5)))))),"")) -> * Redução de potência @ Temp. baixa
B27: =IF(J3=6,INDEX(Language!B4:G36,17,6),IF(J3=5,INDEX(Language!B4:F35,17,1),IF(J3=4,INDEX(Language!B4:F35,17,2),IF(J3=3,INDEX(Language!B4:F35,17,3),IF(J3=2,INDEX(Language!B4:F35,17,4),INDEX(Language!B4:F35,17,5)))))) -> Corrente max. @ MPPT temp. max. | G27: =IF('Calculation table'!E20=0,"N.A.",'Calculation table'!G47) -> 42.63113062
G28: =IF(G27="N.A.","",IF('Calculation table'!G47=G24,IF(J3=6,INDEX(Language!B4:G41,28,6),IF(J3=5,INDEX(Language!B4:F35,28,1),IF(J3=4,INDEX(Language!B4:F35,28,2),IF(J3=3,INDEX(Language!B4:F35,28,3),IF(J3=2,INDEX(Language!B4:F35,28,4),INDEX(Language!B4:F35,28,5)))))),"")) -> 
B29: =IF(J3=6,INDEX(Language!B4:G36,18,6),IF(J3=5,INDEX(Language!B4:F35,18,1),IF(J3=4,INDEX(Language!B4:F35,18,2),IF(J3=3,INDEX(Language!B4:F35,18,3),IF(J3=2,INDEX(Language!B4:F35,18,4),INDEX(Language!B4:F35,18,5)))))) -> Configuração do módulo FV | G29: =IF('Calculation table'!E50=FALSE,IF(G21<=G20,IF(G25<=G24,IF(G23>G22,H29,J29),J29),J29),J29) -> Aceito | H29: =IF(J3=6,INDEX(Language!B4:G40,37,6),IF(J3=5,INDEX(Language!B4:F40,37,1),IF(J3=4,INDEX(Language!B4:F40,37,2),IF(J3=3,INDEX(Language!B4:F40,37,3),IF(J3=2,INDEX(Language!B4:F40,37,4),INDEX(Language!B4:F40,37,5)))))) -> Aceito | J29: =IF(J3=6,INDEX(Language!B4:G41,38,6),IF(J3=5,INDEX(Language!B4:F41,38,1),IF(J3=4,INDEX(Language!B4:F41,38,2),IF(J3=3,INDEX(Language!B4:F41,38,3),IF(J3=2,INDEX(Language!B4:F41,38,4),INDEX(Language!B4:F41,38,5)))))) -> NÃO aceito
K31: BHO 05-2020 3.6
A33: =IF(J3=6,INDEX(Language!B4:G41,34,6),IF(J3=5,INDEX(Language!B4:F37,34,1),IF(J3=4,INDEX(Language!B4:F37,34,2),IF(J3=3,INDEX(Language!B4:F37,34,3),IF(J3=2,INDEX(Language!B4:F37,34,4),INDEX(Language!B4:F37,34,5)))))) -> ¿Vai cair neve nos modulos ? | J33: =IF(M33=TRUE,IF(J3=6,INDEX(Language!B4:G41,35,6),IF(J3=5,INDEX(Language!B4:F38,35,1),IF(J3=6,INDEX(Language!B4:G41,35,6),IF(J3=4,INDEX(Language!B4:F38,35,2),IF(J3=3,INDEX(Language!B4:F38,35,3),IF(J3=2,INDEX(Language!B4:F38,35,4),INDEX(Language!B4:F38,35,5))))))),IF(J3=6,INDEX(Language!B4:G41,36,6),IF(J3=5,INDEX(Language!B4:F39,36,1),IF(J3=4,INDEX(Language!B4:F39,36,2),IF(J3=3,INDEX(Language!B4:F39,36,3),IF(J3=2,INDEX(Language!B4:F39,36,4),INDEX(Language!B4:F39,36,5))))))) -> Não | M33: FALSE
A35: =IF(J3=6,INDEX(Language!B4:G41,19,6),IF(J3=5,INDEX(Language!B4:F35,19,1),IF(J3=4,INDEX(Language!B4:F35,19,2),IF(J3=3,INDEX(Language!B4:F35,19,3),IF(J3=2,INDEX(Language!B4:F35,19,4),INDEX(Language!B4:F35,19,5)))))) -> Exemplos de localização com temperaturas previstas: | H35: =IF(J3=5,INDEX(Language!B4:F35,7,1),IF(J3=4,INDEX(Language!B4:F35,7,2),IF(J3=3,INDEX(Language!B4:F35,7,3),IF(J3=2,INDEX(Language!B4:F35,7,4),INDEX(Language!B4:F35,7,5))))) -> Min. | J35: =IF(J3=5,INDEX(Language!B4:F35,8,1),IF(J3=4,INDEX(Language!B4:F35,8,2),IF(J3=3,INDEX(Language!B4:F35,8,3),IF(J3=2,INDEX(Language!B4:F35,8,4),INDEX(Language!B4:F35,8,5))))) -> Max.
A36: =IF(J3=6,INDEX(Language!B4:G41,20,6),IF(J3=5,INDEX(Language!B4:F35,20,1),IF(J3=4,INDEX(Language!B4:F35,20,2),IF(J3=3,INDEX(Language!B4:F35,20,3),IF(J3=2,INDEX(Language!B4:F35,20,4),INDEX(Language!B4:F35,20,5)))))) -> Num plano reto no motorhome, durante todo o ano (má ventilação) | H36: =IF($B$12=1, M36, ((M36)*9/5)+32) -> 0 | I36: =IF(B12=1, "°C", "°F") -> °C | J36: =IF(B12=1, 70, ((70)*9/5)+32) -> 70 | K36: =IF(B12=1, "°C", "°F") -> °C | M36: =IF(M33=TRUE,-10,0) -> 0
A37: =IF(J3=6,INDEX(Language!B4:G41,21,6),IF(J3=5,INDEX(Language!B4:F35,21,1),IF(J3=4,INDEX(Language!B4:F35,21,2),IF(J3=3,INDEX(Language!B4:F35,21,3),IF(J3=2,INDEX(Language!B4:F35,21,4),INDEX(Language!B4:F35,21,5)))))) -> Num plano reto no motorhome, somente no verão (má ventilação) | H37: 15 | I37: =IF(B12=1, "°C", "°F") -> °C | J37: =IF(B12=1, 70, ((70)*9/5)+32) -> 70 | K37: =IF(B12=1, "°C", "°F") -> °C | M37: =IF(M33=TRUE,5,15) -> 15
A38: =IF(J3=6,INDEX(Language!B4:G41,22,6),IF(J3=5,INDEX(Language!B4:F35,22,1),IF(J3=4,INDEX(Language!B4:F35,22,2),IF(J3=3,INDEX(Language!B4:F35,22,3),IF(J3=2,INDEX(Language!B4:F35,22,4),INDEX(Language!B4:F35,22,5)))))) -> Num plano reto no barco (má ventilação) | H38: 10 | I38: =IF(B12=1, "°C", "°F") -> °C | J38: =IF(B12=1, 65, ((65)*9/5)+32) -> 65 | K38: =IF(B12=1, "°C", "°F") -> °C | M38: =IF(M33=TRUE,0,10) -> 10
A39: =IF(J3=6,INDEX(Language!B4:G41,23,6),IF(J3=5,INDEX(Language!B4:F35,23,1),IF(J3=4,INDEX(Language!B4:F35,23,2),IF(J3=3,INDEX(Language!B4:F35,23,3),IF(J3=2,INDEX(Language!B4:F35,23,4),INDEX(Language!B4:F35,23,5)))))) -> Inclinado no barco (boa ventilação) | H39: 5 | I39: =IF(B12=1, "°C", "°F") -> °C | J39: =IF(B12=1, 60, ((60)*9/5)+32) -> 60 | K39: =IF(B12=1, "°C", "°F") -> °C | M39: =IF(M33=TRUE,-5,5) -> 5
A40: =IF(J3=6,INDEX(Language!B4:G41,24,6),IF(J3=5,INDEX(Language!B4:F35,24,1),IF(J3=4,INDEX(Language!B4:F35,24,2),IF(J3=3,INDEX(Language!B4:F35,24,3),IF(J3=2,INDEX(Language!B4:F35,24,4),INDEX(Language!B4:F35,24,5)))))) -> Teto inclinado numa região quente (boa ventilação) | H40: 5 | I40: =IF(B12=1, "°C", "°F") -> °C | J40: =IF(B12=1, 70, ((70)*9/5)+32) -> 70 | K40: =IF(B12=1, "°C", "°F") -> °C | M40: =IF(M33=TRUE,-5,5) -> 5
A41: =IF(J3=6,INDEX(Language!B4:G41,25,6),IF(J3=5,INDEX(Language!B4:F35,25,1),IF(J3=4,INDEX(Language!B4:F35,25,2),IF(J3=3,INDEX(Language!B4:F35,25,3),IF(J3=2,INDEX(Language!B4:F35,25,4),INDEX(Language!B4:F35,25,5)))))) -> Teto inclinado numa região templada (boa ventilação) | H41: 0 | I41: =IF(B12=1, "°C", "°F") -> °C | J41: =IF(B12=1, 65, ((65)*9/5)+32) -> 65 | K41: =IF(B12=1, "°C", "°F") -> °C | M41: =IF(M33=TRUE,-10,0) -> 0
A42: =IF(J3=6,INDEX(Language!B4:G41,26,6),IF(J3=5,INDEX(Language!B4:F35,26,1),IF(J3=4,INDEX(Language!B4:F35,26,2),IF(J3=3,INDEX(Language!B4:F35,26,3),IF(J3=2,INDEX(Language!B4:F35,26,4),INDEX(Language!B4:F35,26,5)))))) -> Teto inclinado nas montanha - frio (boa ventilação) | H42: -5 | I42: =IF(B12=1, "°C", "°F") -> °C | J42: =IF(B12=1, 60, ((60)*9/5)+32) -> 60 | K42: =IF(B12=1, "°C", "°F") -> °C | M42: =IF(M33=TRUE,-10,-5) -> -5

Sheet Modules
B1: Manufacturer | C1: Type | D1: Power | E1: Vmpp | F1: Impp | G1: Voc | H1: Isc | I1: V temp coeff | J1: I temp coeff | K1: Art.Nr.
B2: [name] | C2: [name] | D2: [W] | E2: [V] | F2: [A] | G2: [V] | H2: [A] | I2: [%/°C] | J2: [%/°C]
A3: =B3&" "&C3&" ("&K3&")" -> Victron Energy SPM20-12 (SPM040201200) | B3: Victron Energy | C3: SPM20-12 | D3: 20 | E3: 18,5 | F3: 1.09 | G3: 22.6 | H3: 1.19 | I3: -0.35 | J3: 0.04 | K3: SPM040201200
A4: =B4&" "&C4&" ("&K4&")" -> Victron Energy SPM30-12 (SPM040301200) | B4: Victron Energy | C4: SPM30-12 | D4: 30 | E4: 18.7 | F4: 1.61 | G4: 22.87 | H4: 1.76 | I4: -0.34 | J4: 0.037 | K4: SPM040301200
A5: Victron Energy SPM40-12 (SPM040401200) | B5: Victron Energy | C5: SPM40-12 | D5: 40 | E5: 18.3 | F5: 2.19 | G5: 22.45 | H5: 2.4 | I5: -0.35 | J5: 0.04 | K5: SPM040401200
A6: Victron Energy SPM55-12 (SPM040551200) | B6: Victron Energy | C6: SPM55-12 | D6: 55 | E6: 18.8 | F6: 2.94 | G6: 22.9 | H6: 3.22 | I6: -0.35 | J6: 0.04 | K6: SPM040551200
A7: Victron Energy SPM90-12 (SPM040901200 ) | B7: Victron Energy | C7: SPM90-12 | D7: 90 | E7: 19.6 | F7: 4.59 | G7: 24.06 | H7: 5.03 | I7: -0.35 | J7: 0.04 | K7: SPM040901200
A8: Victron Energy SPM115-12 (SPM041151200) | B8: Victron Energy | C8: SPM115-12 | D8: 115 | E8: 19 | F8: 6.04 | G8: 23.32 | H8: 6.61 | I8: -0.35 | J8: 0.04 | K8: SPM041151200
A9: Victron Energy SPM175-12 (SPM041751200) | B9: Victron Energy | C9: SPM175-12 | D9: 175 | E9: 19.4 | F9: 9.03 | G9: 23.7 | H9: 9.89 | I9: -0.35 | J9: 0.04 | K9: SPM041751200
A10: =B10&" "&C10&" ("&K10&")" -> Victron Energy SPM215-24 (SPM042152400) | B10: Victron Energy | C10: SPM215-24 | D10: 215 | E10: 37.4 | F10: 5.75 | G10: 45.82 | H10: 6.3 | I10: -0.35 | J10: 0.04 | K10: SPM042152400
A11: Victron Energy SPM305-20 (SPM043052000) | B11: Victron Energy | C11: SPM305-20 | D11: 305 | E11: 32.5 | F11: 9.38 | G11: 39.7 | H11: 10.27 | I11: -0.35 | J11: 0.04 | K11: SPM043052000
A12: Victron Energy SPM360-24 (SPM043602400) | B12: Victron Energy | C12: SPM360-24 | D12: 360 | E12: 38.4 | F12: 9.38 | G12: 47.4 | H12: 10.24 | I12: -0.35 | J12: 0.04 | K12: SPM043602400
A13: Victron Energy SPP20-12 (SPP040201200) | B13: Victron Energy | C13: SPP20-12 | D13: 20 | E13: 18.4 | F13: 1.09 | G13: 21.96 | H13: 1.18 | I13: -0.35 | J13: 0.04 | K13: SPP040201200
A14: Victron Energy SPP30-12 (SPP040301200) | B14: Victron Energy | C14: SPP30-12 | D14: 30 | E14: 18.2 | F14: 1.66 | G14: 21.8 | H14: 1.8 | I14: -0.35 | J14: 0.04 | K14: SPP040301200
A15: =B15&" "&C15&" ("&K15&")" -> Victron Energy SPP45-12 (SPP040451200) | B15: Victron Energy | C15: SPP45-12 | D15: 45 | E15: 19.1 | F15: 2.36 | G15: 22.9 | H15: 2.55 | I15: -0.35 | J15: 0.04 | K15: SPP040451200
A16: Victron Energy SPP60-12 (SPP040601200) | B16: Victron Energy | C16: SPP60-12 | D16: 60 | E16: 19.3 | F16: 3.12 | G16: 23.1 | H16: 3.37 | I16: -0.35 | J16: 0.04 | K16: SPP040601200
A17: Victron Energy SPP90-12 (SPP040901200) | B17: Victron Energy | C17: SPP90-12 | D17: 90 | E17: 19.5 | F17: 4.61 | G17: 23.44 | H17: 4.98 | I17: -0.35 | J17: 0.04 | K17: SPP040901200
A18: Victron Energy SPP100-12 (SPP041001200) | B18: Victron Energy | C18: SPP100-12 | D18: 100 | E18: 18.2 | F18: 5.5 | G18: 21.85 | H18: 5.94 | I18: -0.35 | J18: 0.037 | K18: SPP041001200
A19: =B19&" "&C19&" ("&K19&")" -> Victron Energy SPP115-12 (SPP041151200) | B19: Victron Energy | C19: SPP115-12 | D19: 115 | E19: 18.94 | F19: 6.08 | G19: 22.73 | H19: 6.56 | I19: -0.35 | J19: 0.04 | K19: SPP041151200
A20: Victron Energy SPP175-12 (SPP041751200) | B20: Victron Energy | C20: SPP175-12 | D20: 175 | E20: 18.3 | F20: 9.56 | G20: 21.9 | H20: 10.24 | I20: -0.35 | J20: 0.04 | K20: SPP041751200
A21: Victron Energy SPP260-20 (SPP032602000) | B21: Victron Energy | C21: SPP260-20 | D21: 260 | E21: 30 | F21: 8.66 | G21: 36.75 | H21: 9.3 | I21: -0.34 | J21: 0.045 | K21: SPP032602000
A22: =B22&" "&C22&" ("&K22&")" -> Victron Energy SPP270-20 (SPP042702000) | B22: Victron Energy | C22: SPP270-20 | D22: 270 | E22: 31.7 | F22: 8.52 | G22: 38.04 | H22: 9.21 | I22: -0.34 | J22: 0.045 | K22: SPP042702000
A23: Victron Energy SPP330-24 (SPP043302400) | B23: Victron Energy | C23: SPP330-24 | D23: 330 | E23: 37.3 | F23: 8.86 | G23: 44.72 | H23: 9.57 | I23: -0.35 | J23: 0.04 | K23: SPP043302400
A24: PAINEL BYD 335W - POLICRISTALINO 72 CÉLULAS | B24: BYD | D24: 335 | E24: 37.35 | F24: 8.97 | G24: 47.28 | H24: 9.39 | I24: -0.31 | J24: 0.07
A25: PAINEL JINKO 400W -MONO CRISTALINO 144 HALF CELL | B25: JINKO | C25: JKM400M-72H-V | D25: 400 | E25: 41.7 | F25: 9.6 | G25: 49.8 | H25: 10.36 | I25: -0.28 | J25: 0.048
A26: PAINEL CANADIAN 350W - POLI 144 CÉLULAS | B26: CANADIAN | C26: CS3U-350PB-AG | D26: 350 | E26: 39.2 | F26: 8.94 | G26: 46.6 | H26: 9.51 | I26: -0.28 | J26: 0.05
A27: PAINEL CANADIAN 400W - POLI 144 CÉLULAS | B27: CANADIAN | C27: CS3W-400PB-AG | D27: 400 | E27: 38.7 | F27: 10.34 | G27: 47.2 | H27: 10.9 | I27: -0.28 | J27: 0.05
A28: PAINEL CANADIAN 435W - POLI 144 CÉLULAS | B28: CANADIAN | C28: CS3W-435P | D28: 435 | E28: 40.1 | F28: 10.85 | G28: 48.6 | H28: 11.35 | I28: -0.28 | J28: 0.05
A36: =IF(Form!J3=6,INDEX(Language!B4:G51,40,6),IF(Form!J3=5,INDEX(Language!B4:F51,40,1),IF(Form!J3=4,INDEX(Language!B4:F51,40,2),IF(Form!J3=3,INDEX(Language!B4:F51,40,3),IF(Form!J3=2,INDEX(Language!B4:F51,40,4),INDEX(Language!B4:F51,40,5)))))) -> Calculo do coeficiente de temperatura
A37: =IF(Form!J3=6,INDEX(Language!B4:G51,41,6),IF(Form!J3=5,INDEX(Language!B4:F51,41,1),IF(Form!J3=4,INDEX(Language!B4:F51,41,2),IF(Form!J3=3,INDEX(Language!B4:F51,41,3),IF(Form!J3=2,INDEX(Language!B4:F51,41,4),INDEX(Language!B4:F51,41,5)))))) -> Caso tiver o coeficiente de temperatura de voltagem em mV/°C, pode ser trocado para %/°C
A38: =IF(Form!J3=6,INDEX(Language!B4:G51,42,6),IF(Form!J3=5,INDEX(Language!B4:F51,42,1),IF(Form!J3=4,INDEX(Language!B4:F51,42,2),IF(Form!J3=3,INDEX(Language!B4:F51,42,3),IF(Form!J3=2,INDEX(Language!B4:F51,42,4),INDEX(Language!B4:F51,42,5)))))) -> Escreve o valor do Voc (voltagem do circuito abierto) em volts | C38: 24.1 | D38: V
A39: =IF(Form!J3=6,INDEX(Language!B4:G51,43,6),IF(Form!J3=5,INDEX(Language!B4:F51,43,1),IF(Form!J3=4,INDEX(Language!B4:F51,43,2),IF(Form!J3=3,INDEX(Language!B4:F51,43,3),IF(Form!J3=2,INDEX(Language!B4:F51,43,4),INDEX(Language!B4:F51,43,5)))))) -> Escreve o valor do coeficiente em mV/°C: | C39: -77 | D39: mV/°C
A40: =IF(Form!J3=6,INDEX(Language!B4:G51,44,6),IF(Form!J3=5,INDEX(Language!B4:F51,44,1),IF(Form!J3=4,INDEX(Language!B4:F51,44,2),IF(Form!J3=3,INDEX(Language!B4:F51,44,3),IF(Form!J3=2,INDEX(Language!B4:F51,44,4),INDEX(Language!B4:F51,44,5)))))) -> O valor do coeficiente en %/°C agora: | C40: =(C39/1000)/(C38/100) -> -0.3195020747 | D40: %/°C
A42: =IF(Form!J3=6,INDEX(Language!B4:G51,45,6),IF(Form!J3=5,INDEX(Language!B4:F51,45,1),IF(Form!J3=4,INDEX(Language!B4:F51,45,2),IF(Form!J3=3,INDEX(Language!B4:F51,45,3),IF(Form!J3=2,INDEX(Language!B4:F51,45,4),INDEX(Language!B4:F51,45,5)))))) -> Se tem o coeficiente de temperatura atual em mA/°C, pode ser trocado para %/°C
A43: =IF(Form!J3=6,INDEX(Language!B4:G51,46,6),IF(Form!J3=5,INDEX(Language!B4:F51,46,1),IF(Form!J3=4,INDEX(Language!B4:F51,46,2),IF(Form!J3=3,INDEX(Language!B4:F51,46,3),IF(Form!J3=2,INDEX(Language!B4:F51,46,4),INDEX(Language!B4:F51,46,5)))))) -> Escreve o valor do Isc (corrente de curtocircuito) em ampers | C43: 8.72 | D43: A
A44: =IF(Form!J3=6,INDEX(Language!B4:G51,47,6),IF(Form!J3=5,INDEX(Language!B4:F51,47,1),IF(Form!J3=4,INDEX(Language!B4:F51,47,2),IF(Form!J3=3,INDEX(Language!B4:F51,47,3),IF(Form!J3=2,INDEX(Language!B4:F51,47,4),INDEX(Language!B4:F51,47,5)))))) -> Escreve o valor do coeficiente em mA/°C: | C44: 4.7 | D44: mA/°C
A45: =IF(Form!J3=6,INDEX(Language!B4:G51,48,6),IF(Form!J3=5,INDEX(Language!B4:F51,48,1),IF(Form!J3=4,INDEX(Language!B4:F51,48,2),IF(Form!J3=3,INDEX(Language!B4:F51,48,3),IF(Form!J3=2,INDEX(Language!B4:F51,48,4),INDEX(Language!B4:F51,48,5)))))) -> O coeficiente em %/°C : | C45: =(C44/1000)/(C43/100) -> 0.05389908257 | D45: %/°C

Sheet Regulator
B1: Manufacturer | C1: Type | D1: Power @ 12V | E1: Power @ 24V | F1: Power @ 36V | G1: Power @ 48V | H1: Voc max | I1: Voc min | J1: Vmpp min | K1: System Voltage | O1: IPV max | P1: Ibat max | Q1: Efficiency@12 | R1: Efficiency@24 | S1: Efficiency@36 | T1: Efficiency@48
A2: =B2&" "&C2 -> Victron Energy Blue-/ SmartSolar MPPT 75/10 | B2: Victron Energy | C2: Blue-/ SmartSolar MPPT 75/10 | D2: 135 | E2: 270 | F2: 0 | G2: 0 | H2: 75 | I2: 5 | J2: 1 | K2: 12 | L2: 24 | M2: N.A. | N2: N.A. | O2: 13 | P2: 10 | Q2: 0.98 | R2: 0.98 | S2: 0 | T2: 0
A3: Victron Energy Blue-/ SmartSolar MPPT 75/15 | B3: Victron Energy | C3: Blue-/ SmartSolar MPPT 75/15 | D3: 200 | E3: 400 | F3: 0 | G3: 0 | H3: 75 | I3: 5 | J3: 1 | K3: 12 | L3: 24 | M3: N.A. | N3: N.A. | O3: 15 | P3: 15 | Q3: 0.98 | R3: 0.98 | S3: 0 | T3: 0
A4: Victron Energy Blue-/ SmartSolar MPPT 100/15 | B4: Victron Energy | C4: Blue-/ SmartSolar MPPT 100/15 | D4: 200 | E4: 400 | F4: 0 | G4: 0 | H4: 100 | I4: 5 | J4: 1 | K4: 12 | L4: 24 | M4: N.A. | N4: N.A. | O4: 15 | P4: 15 | Q4: 0.98 | R4: 0.98 | S4: 0 | T4: 0
A5: Victron Energy Smart Solar MPPT 100/20 | B5: Victron Energy | C5: Smart Solar MPPT 100/20 | D5: 290 | E5: 580 | F5: 0 | G5: 0 | H5: 100 | I5: 5 | J5: 1 | K5: 12 | L5: 24 | M5: N.A. | N5: N.A. | O5: 20 | P5: 20 | Q5: 0.98 | R5: 0.98 | S5: 0 | T5: 0
A6: Victron Energy Smart Solar MPPT 100/20 48V | B6: Victron Energy | C6: Smart Solar MPPT 100/20 48V | D6: 0 | E6: 0 | F6: 0 | G6: 1160 | H6: 100 | I6: 5 | J6: 1 | K6: N.A. | L6: N.A. | M6: N.A. | N6: 48 | O6: 20 | P6: 20 | Q6: 0 | R6: 0 | S6: 0 | T6: 0.98
A7: Victron Energy Blue-/ SmartSolar MPPT 100/30 | B7: Victron Energy | C7: Blue-/ SmartSolar MPPT 100/30 | D7: 440 | E7: 880 | F7: 0 | G7: 0 | H7: 100 | I7: 5 | J7: 1 | K7: 12 | L7: 24 | M7: N.A. | N7: N.A. | O7: 30 | P7: 30 | Q7: 0.98 | R7: 0.98 | S7: 0 | T7: 0
A8: Victron Energy Blue-/ SmartSolar MPPT 100/50 | B8: Victron Energy | C8: Blue-/ SmartSolar MPPT 100/50 | D8: 700 | E8: 1400 | F8: 0 | G8: 0 | H8: 100 | I8: 5 | J8: 1 | K8: 12 | L8: 24 | M8: N.A. | N8: N.A. | O8: 50 | P8: 50 | Q8: 0.98 | R8: 0.98 | S8: 0 | T8: 0
A9: Victron Energy Blue-/ SmartSolar MPPT 150/35 | B9: Victron Energy | C9: Blue-/ SmartSolar MPPT 150/35 | D9: 500 | E9: 1000 | F9: 1500 | G9: 2000 | H9: 150 | I9: 5 | J9: 1 | K9: 12 | L9: 24 | M9: 36 | N9: 48 | O9: 40 | P9: 35 | Q9: 0.98 | R9: 0.98 | S9: 0.98 | T9: 0.98
A10: Victron Energy Blue-/ SmartSolar MPPT 150/45 Tr/MC4 | B10: Victron Energy | C10: Blue-/ SmartSolar MPPT 150/45 Tr/MC4 | D10: 650 | E10: 1300 | G10: 2600 | H10: 150 | I10: 5 | J10: 1 | K10: 12 | L10: 24 | M10: 36 | N10: 48 | O10: 50 | P10: 45 | Q10: 0.98 | R10: 0.98 | S10: 0.98 | T10: 0.98
A11: Victron Energy Blue-/ SmartSolar MPPT 150/60 Tr/MC4 | B11: Victron Energy | C11: Blue-/ SmartSolar MPPT 150/60 Tr/MC4 | D11: 860 | E11: 1720 | G11: 3440 | H11: 150 | I11: 5 | J11: 1 | K11: 12 | L11: 24 | M11: 36 | N11: 48 | O11: 50 | P11: 60 | Q11: 0.98 | R11: 0.98 | S11: 0.98 | T11: 0.98
A12: Victron Energy Blue-/ SmartSolar MPPT 150/70 Tr/Tr VE.Can/MC4 | B12: Victron Energy | C12: Blue-/ SmartSolar MPPT 150/70 Tr/Tr VE.Can/MC4 | D12: 1000 | E12: 2000 | G12: 4000 | H12: 150 | I12: 5 | J12: 1 | K12: 12 | L12: 24 | M12: 36 | N12: 48 | O12: 50 | P12: 70 | Q12: 0.98 | R12: 0.98 | S12: 0.98 | T12: 0.98
A13: Victron Energy SmartSolar MPPT 150/85 Tr/Tr VE.Can/MC4 | B13: Victron Energy | C13: SmartSolar MPPT 150/85 Tr/Tr VE.Can/MC4 | D13: 1200 | E13: 2400 | G13: 4900 | H13: 150 | I13: 5 | J13: 1 | K13: 12 | L13: 24 | M13: 36 | N13: 48 | O13: 70 | P13: 85 | Q13: 0.98 | R13: 0.98 | S13: 0.98 | T13: 0.98
A14: Victron Energy SmartSolar MPPT 150/100 Tr/Tr VE.Can/MC4 | B14: Victron Energy | C14: SmartSolar MPPT 150/100 Tr/Tr VE.Can/MC4 | D14: 1450 | E14: 2900 | G14: 5800 | H14: 150 | I14: 5 | J14: 1 | K14: 12 | L14: 24 | M14: 36 | N14: 48 | O14: 70 | P14: 100 | Q14: 0.98 | R14: 0.98 | S14: 0.98 | T14: 0.98
A15: Victron Energy SmartSolar MPPT 250/60 Tr/MC4 | B15: Victron Energy | C15: SmartSolar MPPT 250/60 Tr/MC4 | D15: 860 | E15: 1720 | G15: 3440 | H15: 250 | I15: 5 | J15: 1 | K15: 12 | L15: 24 | M15: 36 | N15: 48 | O15: 35 | P15: 60 | Q15: 0.99 | R15: 0.99 | S15: 0.99 | T15: 0.99
A16: Victron Energy SmartSolar MPPT 250/70 Tr/Tr VE.Can/MC4 | B16: Victron Energy | C16: SmartSolar MPPT 250/70 Tr/Tr VE.Can/MC4 | D16: 1000 | E16: 2000 | G16: 4000 | H16: 250 | I16: 5 | J16: 1 | K16: 12 | L16: 24 | M16: 36 | N16: 48 | O16: 35 | P16: 70 | Q16: 0.99 | R16: 0.99 | S16: 0.99 | T16: 0.99
A17: Victron Energy SmartSolar MPPT 250/85 Tr/Tr VE.Can/MC4 | B17: Victron Energy | C17: SmartSolar MPPT 250/85 Tr/Tr VE.Can/MC4 | D17: 1200 | E17: 2400 | G17: 4900 | H17: 250 | I17: 5 | J17: 1 | K17: 12 | L17: 24 | M17: 36 | N17: 48 | O17: 70 | P17: 85 | Q17: 0.99 | R17: 0.99 | S17: 0.99 | T17: 0.99
A18: Victron Energy SmartSolar MPPT 250/100 Tr/Tr VE.Can/MC4 | B18: Victron Energy | C18: SmartSolar MPPT 250/100 Tr/Tr VE.Can/MC4 | D18: 1450 | E18: 2900 | G18: 5800 | H18: 250 | I18: 5 | J18: 1 | K18: 12 | L18: 24 | M18: 36 | N18: 48 | O18: 70 | P18: 100 | Q18: 0.99 | R18: 0.99 | S18: 0.99 | T18: 0.99

Sheet Calculation table
A2: DATA:
A4: Location: | C4: =Form!F12 -> 0 | D4: min | E4: =Form!E11 -> 0
C5: =Form!H12 -> 70 | D5: max | E5: =Form!H11 -> 70
A7: Module info: | C7: =INDEX(Modules!B3:J34,Form!D4,6)*Form!D6 -> 99.6 | D7: Voc @25°C
C8: =INDEX(Modules!B3:J34,Form!D4,4)*Form!D6 -> 83.4 | D8: Vmpp @25°C
C9: =INDEX(Modules!B3:J34,Form!D4,7)*Form!H6 -> 31.08 | D9: Isc PV@25°C
C10: =INDEX(Modules!B3:J34,Form!D4,5)*Form!H6 -> 28.8 | D10: Impp PV @25°C
C11: =$C$10*$C$8/E20 -> 50.04 | D11: Impp output @25°C
C12: =INDEX(Modules!B3:J34,Form!D4,8) -> -0.28 | D12: Temp. Coeff. Voc
C13: =(C7/100)*C12 -> -0.27888 | D13: Temp. Coeff. Voc absolute
C14: =INDEX(Modules!B3:J34,Form!D4,9) -> 0.048 | D14: Temp. Coeff. Isc
C15: =C9*(C14/100) -> 0.0149184 | D15: Temp. Coeff. Isc absolute
C16: =Form!D8 -> 2400 | D16: Choosen PV power
A18: Regulator info: | C18: =INDEX(Regulator!$B$2:$H$18,Form!$D$13,7) -> 150 | D18: Voc max | E18: =INDEX(Regulator!B2:P18,Form!$D$13,15) -> 45 | F18: Ibat max
C19: =INDEX(Regulator!B2:J18,Form!D13,8)+E20 -> 53 | D19: Voc min | E19: =INDEX(Regulator!B2:P18,Form!$D$13,14) -> 50 | F19: IPV max
C20: =INDEX(Regulator!$B$2:$J$29,Form!$E$15,9)+E20 -> 49 | D20: Vmpp min | E20: =IF(INDEX(Form!$M$12:$M$15,Form!$E$15,1)="N.A.",0,INDEX(Form!$M$12:$M$15,Form!$E$15,1)) -> 48 | F20: System voltage | G20: =IF(E20=12,16,IF(E20=24,17,IF(E20=36,18,19))) -> 19
C21: =IF(E20=48,INDEX(Regulator!D2:G18,Form!D13,4),IF(E20=36,INDEX(Regulator!D2:G18,Form!D13,3),IF(E20=24,INDEX(Regulator!D2:G18,Form!D13,2),IF(E20=12,INDEX(Regulator!D2:G18,Form!D13,1),0)))) -> 2600 | D21: Possible charge power (from datasheet) without limiting PV power | E21: =INDEX(Regulator!B2:T18,Form!$D$13,G20) -> 0.98 | F21: Max. Efficiency
A23: Voltage drop: | C23: 0.0178 | D23: Cupper resistance
C24: =((Form!H17+Form!H17)*C23)/Form!H18 -> 0.05933333333 | D24: Factor
A27: RESULTS:
A29: Temperature | C29: Voc max. | D29: Voc START min. | E29: Vmpp RUN min. | F29: String Voc max. | G29: String Vmpp max. | H29: String Vmpp corr.max. | I29: String Voc min. | J29: String Vmpp min. | K29: String Vmpp corr. min.
A30: =IF(Form!$B$12=1,B30, ((B30)*9/5)+32) -> 0 | B30: =C4 -> 0 | C30: =$C$18 -> 150 | D30: =$C$19 -> 53 | E30: =$C$20 -> 49 | F30: =$C$7+($C$13*-(25-B30)) -> 106.572 | G30: =$C$8+($C$13*-(25-B30)) -> 90.372 | H30: =($C$8+($C$13*-(25-B30))-($C$24*D40)) -> 88.68532896
A31: =IF(Form!$B$12=1,B31, ((B31)*9/5)+32) -> 5 | B31: =B30+5 -> 5 | C31: =$C$18 -> 150 | D31: =$C$19 -> 53 | E31: =$C$20 -> 49 | F31: =$C$7+($C$13*-(25-B31)) -> 105.1776 | G31: =$C$8+($C$13*-(25-B31)) -> 88.9776 | H31: =($C$8+($C$13*-(25-B31))-($C$24*D41)) -> 87.28650317
A32: =IF(Form!$B$12=1,B32, ((B32)*9/5)+32) -> 10 | B32: =B31+5 -> 10 | C32: 150 | D32: 53 | E32: 49 | F32: =$C$7+($C$13*-(25-B32)) -> 103.7832 | G32: 87.5832 | H32: 85.88767738
A33: =IF(Form!$B$12=1,B33, ((B33)*9/5)+32) -> 15 | B33: =B32+5 -> 15 | C33: 150 | D33: 53 | E33: 49 | F33: =$C$7+($C$13*-(25-B33)) -> 102.3888 | G33: 86.1888 | H33: =($C$8+($C$13*-(25-B33))-($C$24*D43)) -> 84.48885158
A34: =IF(Form!$B$12=1,B34, ((B34)*9/5)+32) -> 55 | B34: =B35-5 -> 55 | C34: 150 | D34: 53 | E34: 49 | I34: =$C$7+($C$13*-(25-B34)) -> 91.2336 | J34: =$C$8+($C$13*-(25-B34)) -> 75.0336 | K34: =$C$8+($C$13*-(25-B34))-($C$24*D44) -> 73.29824525
A35: =IF(Form!$B$12=1,B35, ((B35)*9/5)+32) -> 60 | B35: =B36-5 -> 60 | C35: 150 | D35: 53 | E35: 49 | I35: =$C$7+($C$13*-(25-B35)) -> 89.8392 | J35: =$C$8+($C$13*-(25-B35)) -> 73.6392 | K35: =$C$8+($C$13*-(25-B35))-($C$24*D45) -> 71.89941946
A36: =IF(Form!$B$12=1,B36, ((B36)*9/5)+32) -> 65 | B36: =B37-5 -> 65 | C36: 150 | D36: 53 | E36: 49 | I36: 88.4448 | J36: 72.2448 | K36: 70.50059366
A37: =IF(Form!$B$12=1,B37, ((B37)*9/5)+32) -> 70 | B37: =C5 -> 70 | C37: 150 | D37: 53 | E37: 49 | I37: 87.0504 | J37: 70.8504 | K37: 69.10176787
A39: Temperature | C39: Ibat max. | D39: Impp PV max. | E39: System Voltage | F39: Ibat max. @ Impp | G39: Ibat min. @ Impp
A40: =IF(Form!$B$12=1,B40, ((B40)*9/5)+32) -> 0 | B40: =C4 -> 0 | C40: =$E$18 -> 45 | D40: =$C$10+($C$15*-(25-B40)) -> 28.42704 | E40: =$E$20 -> 48 | F40: =IF((((D40*G30)/E40)*$E$21)>$E$18,$E$18,(((D40*G30)/E40)*$E$21)) -> 45
A41: =IF(Form!$B$12=1,B41, ((B41)*9/5)+32) -> 5 | B41: =B40+5 -> 5 | C41: =$E$18 -> 45 | D41: =$C$10+($C$15*-(25-B41)) -> 28.501632 | E41: =$E$20 -> 48 | F41: =IF((((D41*G31)/E41)*$E$21)>$E$18,$E$18,(((D41*G31)/E41)*$E$21)) -> 45
A42: =IF(Form!$B$12=1,B42, ((B42)*9/5)+32) -> 10 | B42: =B41+5 -> 10 | C42: 45 | D42: 28.576224 | E42: 48 | F42: =IF((((D42*G32)/E42)*$E$21)>$E$18,$E$18,(((D42*G32)/E42)*$E$21)) -> 45
A43: =IF(Form!$B$12=1,B43, ((B43)*9/5)+32) -> 15 | B43: =B42+5 -> 15 | C43: 45 | D43: 28.650816 | E43: 48 | F43: =IF((((D43*G33)/E43)*$E$21)>$E$18,$E$18,(((D43*G33)/E43)*$E$21)) -> 45
A44: =IF(Form!$B$12=1,B44, ((B44)*9/5)+32) -> 55 | B44: =B45-5 -> 55 | C44: 45 | D44: 29.247552 | E44: 48 | G44: =IF(((D44*J34)/E44*$E$21)>$E$18,$E$18,((D44*J34)/E44*$E$21)) -> 44.80537782
A45: =IF(Form!$B$12=1,B45, ((B45)*9/5)+32) -> 60 | B45: =B46-5 -> 60 | C45: 45 | D45: 29.322144 | E45: 48 | G45: =IF(((D45*J35)/E45*$E$21)>$E$18,$E$18,((D45*J35)/E45*$E$21)) -> 44.08487587
A46: =IF(Form!$B$12=1,B46, ((B46)*9/5)+32) -> 65 | B46: =B47-5 -> 65 | C46: 45 | D46: 29.396736 | E46: 48 | G46: =IF(((D46*J36)/E46*$E$21)>$E$18,$E$18,((D46*J36)/E46*$E$21)) -> 43.36012681
A47: =IF(Form!$B$12=1,B47, ((B47)*9/5)+32) -> 70 | B47: =C5 -> 70 | C47: 45 | D47: 29.471328 | E47: 48 | G47: =IF(((D47*J37)/E47*$E$21)>$E$18,$E$18,((D47*J37)/E47*$E$21)) -> 42.63113062
A49: PV Power ratio | C49: =C16/C21 -> 0.9230769231 | D49: If more than 1.3 the user becomes an alert that he/ she is oversizing the PV generator with more than 30%
A50: Maximum power point PV current is higher than maximum regulator input current | E50: =IF(C10>E19, TRUE, FALSE) -> FALSE

Sheet Version
A1: History
A3: 3.6 | B3: '- Added Portuguese language
A4: 3.5 | B4: '- Added new VE.Can MPPT's 150/85 & 250/85 VE.Can
A5: 3.4 | B5: '- Added new VE.Can MPPT's 250/70 & 250/100 VE.Can
A6: 3.3 | B6: '- Added new VE.Can MPPT's and deleted old VE.Can MPPT's 150/70 & 150/85
A7: 3.2 | B7: '- Added new Victron solar modules inserted new VE.Can MPPT's and deleted old VE.Can MPPT's 150/70 & 150/85
A8: 3.1 | B8: '- Added new Victron solar modules
A9: 3.0 | B9: - Added Imperial system and reduced min. solar module temperature to -40°C
A10: 2.9 | B10: - Added new Victron solar modules
A11: 2.8 | B11: - Added MPPT 100/20 48V & exchanged new solar modules mono 160/200/340 & poly 150/260/320Wp
A12: 2.7 | B12: - Added 150Wp mono module, SmartSolar 250/60 & 70 and maximum input current
A13: 2.6 | B13: - Added Smart Regulators and SmartSolar 100/20
A14: 2.5 | B14: - Added translations for 'coefficient support' in the modules TAB
A15: 2.4 | B15: - Bug fixed for max. charge current calculations
A16: 2.3 | B16: - Replaced solar modules according newest list. Added 2 SmartSolar MPPT's 250/85 & 250/100 & a remark when the PV generator is oversized.
A17: 2.2 | B17: - Added the MPPT 150/85 Tr/MC4 and 150/100 Tr/MC4 & added two cable sizes 16mm² & 35mm²
A18: 2.1 | B18: - Added the Poly module with 190Wp & added the new VE.Direct MPPT's 150/45, 150/60 & 150/70, small correction in cable loss voltage
A19: 2.0 | B19: - Added the MPPT 75/10 and took out the discontinued 75/50
A20: 1.9 | B20: - Added new solar modules, and now 10 additional modules can be added instead of 3.
A21: 1.8 | B21: - Added a small calculation on the 'Modules' TAB to help when temperature coefficiences are not in %/°C or %/°K but in mV/°C or mA/°C
A22: 1.7 | B22: - Added new solar modules, voltage drop correction and an option to rise the cell temperature in the example list, when the solar modules do not see snow and therefor temperatures will not be so low.
A23: 1.6 | B23: - Inserted 4 new regulators and 2 more custom module.
A24: 1.5 | B24: - Inserted 4 languages @ updated not applicable (N.A.) voltages for 75/15, 75/50 & 100/15.
A25: 1.4 | B25: - Changed texts and Module temperature window.
A26: 1.3 | B26: - Power reduction comment set @ highest temperature.
A27: 1.2 | B27: - Reduced output current to maximum output current at low & high temperatures. Now a system will show 'power loss' only wenn the output current exceeds the max. at low & high temperatures.
A28: 1.1 | B28: - Inserted BlueSolar MPPT 100/15. Inserted custom module
A29: 1.0 | B29: - First version
A30: 0.1 | B30: - This Excel gives an indication how to calculate Victron Energy MPPT's

Sheet Language (hidden)
B1: =IF(Form!J3=5,"V"," ") ->  | C1: =IF(Form!J3=4,"V"," ") ->  | D1: =IF(Form!J3=3,"V"," ") ->  | E1: =IF(Form!J3=2,"V"," ") ->  | F1: =IF(Form!J3=1,"V"," ") -> 
A2: Pos. | B2: ENGLISH | C2: DUTCH | D2: ESPANGOL | E2: DEUTSCH | F2: FRANCAIS | G2: PORTUGUÊS
A4: 1 | B4: Module: | C4: Paneel: | D4: Módulo FV: | E4: Modul: | F4: Panneau: | G4: Módulo FV
A5: 2 | B5: In series: | C5: In serie: | D5: Cuantos módulos? En Serie: | E5: In Reihe: | F5: En serie: | G5: Quantos módulos? Em serie:
A6: 3 | B6: Parallel: | C6: Parallel: | D6: En paralelo: | E6: Parallel: | F6: Parallèle: | G6: Em paralelo
A7: 4 | B7: Total PV power @STC: | C7: Totale PV vermogen @STC: | D7: Potencia total FV @STC: | E7: PV Leistung insgesamt @STC: | F7: Puissance PV totale @STC: | G7: Potência total FV @STC
A8: 5 | B8: Wp | C8: Wp | D8: Wp | E8: Wp | F8: Wc | G8: Wp
A9: 6 | B9: Module temperature: | C9: Paneel temperatuur: | D9: Temp. módulo FV | E9: Modul Temperatur: | F9: Température Paneau: | G9: Temp. módulo FV
A10: 7 | B10: Min. | C10: Min. | D10: Min. | E10: Min. | F10: Min. | G10: Min.
A11: 8 | B11: Max. | C11: Max. | D11: Max. | E11: Max. | F11: Max. | G11: Max.
A12: 9 | B12: Controller: | C12: Regelaar: | D12: Reguladorr: | E12: Regler: | F12: Régulateur: | G12: Controlador
A13: 10 | B13: System voltage: | C13: Systeem spanning: | D13: Voltaje del sistema: | E13: System Spannung: | F13: Tension du système: | G13: Voltagem do sistema
A14: 11 | B14: Max. input voltage | C14: Max. ingangsspanning | D14: Voltaje max. de entrada | E14: Max. Eingangspannung: | F14: Tension d'entrée max.: | G14: Voltagem máxima de entrada
A15: 12 | B15: Max. PV voltage @ min. temperature | C15: Max. PV spanning @ min. temp. | D15: Voltaje max. FV @ Temperatura min. | E15: Max. PV Spannung @ min. Temp. | F15: PV tension max. @ temp. min. | G15: Voltagem max FV@Temp min
A16: 13 | B16: Min. input voltage @ MPP | C16: Min. ingangsspanning @ MPP | D16: Voltaje min. de entrada @ PMP | E16: Min. Eingangspannung @ MPP | F16: Tension d'entrée min. @ MPP | G16: Voltagem min. de entrada @ MPPT
A17: 14 | B17: Min. PV voltage @ max. temperature | C17: Min. PV spanning @ max. Temp. | D17: Voltaje min. FV @ Temperatura max. | E17: Min. PV Spannung @ max. Temp. | F17: PV tension min. @ temp. max. | G17: Voltagem min. FV @ Temperatura max.
A18: 15 | B18: Max. output current | C18: Max. uitgangsstroom | D18: Corriente max. de salida | E18: Max. Ausgangstrom | F18: Courant de sortie max. | G18: Corrente max. de saida
A19: 16 | B19: Max. current @ MPP min. temp. | C19: Max. stroom @ MPP min. temp. | D19: Corriente max. @ PMP temp. min. | E19: Max. Strom @ MPP min. Temp. | F19: Courant max. @ MPP temp. min. | G19: Corrente max. @ MPPT temp. min.
A20: 17 | B20: Max. current @ MPP max. temp. | C20: Max. stroom @ MPP max. temp. | D20: Corriente max. @ PMP temp. max. | E20: Max. Strom @ MPP max. Temp. | F20: Courant max. @ MPP temp. max. | G20: Corrente max. @ MPPT temp. max.
A21: 18 | B21: Solar module configuration | C21: Zonne-paneel configuratie | D21: Configuración del módulo FV | E21: Solar Modul Auslegung | F21: Configuration du panneau | G21: Configuração do módulo FV
A22: 19 | B22: Example locations with expected temperatures: | C22: Voorbeeld lokaties en verwachte temperatuur: | D22: Ejemplos de lugares con temperaturas previstas: | E22: Beispiel Standort und erwartete Temperatur: | F22: Exemple de localisation de site avec la température attendue: | G22: Exemplos de localização com temperaturas previstas:
A23: 20 | B23: Flat on mobile home, all year (poor ventilation) | C23: Vlak op camper, gehele jaar (slechte ventilatie) | D23: Plano sobre una autocaravana, durante todo el año (mala ventilación) | E23: Flach auf Wohnmobil, ganze Jahr (schlechte Hinterlüftung) | F23: À plat sur toit de camping-car toute l'année (mauvaise ventilation) | G23: Num plano reto no motorhome, durante todo o ano (má ventilação)
A24: 21 | B24: Flat on mobile home, only summer (poor ventilation) | C24: Vlak op camper, alleen zomers (slechte ventilatie) | D24: Plano sobre una autocaravana, sólo en verano (mala ventilación) | E24: Flach auf Wohnmobil, nur Sommer (schlechte Hinterlüftung) | F24: À plat sur camping-car , seulement l'été (mauvaise ventilation) | G24: Num plano reto no motorhome, somente no verão (má ventilação)
A25: 22 | B25: Flat on boat (poor ventilation) | C25: Vlak op boot (slechte ventilatie) | D25: Plano sobre el techo de un barco (mala ventilación) | E25: Flach auf Boot (schlechte Hinterlüftung) | F25: À plat sur ​​le bateau (mauvaise ventilation) | G25: Num plano reto no barco (má ventilação)
A26: 23 | B26: Pitched on boat (good ventilation) | C26: Onder helling op boot (goede ventilatie) | D26: Inclinado sobre el techo de un barco (buena ventilación) | E26: Geneigt auf Boot (gute Hinterlüftung) | F26: Inclinée sur bateau (bonne ventilation) | G26: Inclinado no barco (boa ventilação)
A27: 24 | B27: Pitched roof in warm region (good ventilation) | C27: Op schuin dak warme omgeving (goede ventilatie) | D27: Techo inclinado en una región cálida (buena ventilación) | E27: Schrägdach, warme Umgebung (gute Hinterlüftung) | F27: Toit en pente, en région chaude (bonne ventilation) | G27: Teto inclinado numa região quente (boa ventilação)
A28: 25 | B28: Pitched roof in average region (good ventilation) | C28: Op schuin dak gemiddelde omgeving (goede ventilatie) | D28: Techo inclinado en una región templada (buena ventilación) | E28: Schrägdach, mittlere Regio (gute Hinterlüftung) | F28: Toit en pente, région tempérée (bonne ventilation) | G28: Teto inclinado numa região templada (boa ventilação)
A29: 26 | B29: Pitched roof on mountain (good ventilation) | C29: Op schuin dak in de bergen (goede ventilatie) | D29: Techo inclinado en las montañas (buena ventilación) | E29: Schrägdach, in Bergen (gute Hinterlüftung) | F29: Toit en pente, en montagne (bonne ventilation) | G29: Teto inclinado nas montanha - frio (boa ventilação)
A30: 27 | B30: * Power limiting @ low temp. | C30: * Vermogens begrenzing @ lage temp. | D30: * Reducción de potencia @ Temp. baja | E30: * Leistung Begrenzung @ niedrige Temp. | F30: * Limitation de puissance @ basse temp. | G30: * Redução de potência @ Temp. baixa
A31: 28 | B31: ** Power limiting @ high temp. | C31: ** Vermogens begrenzing @ hoge temp. | D31: ** Reducción de potencia @ Temp. alta | E31: ** Leistung Begrenzung @ hohe Temp. | F31: ** Limitation de puissance @ haute temp. | G31: ** Redução de potência @ Temp. alta
A32: 29 | B32: Input voltage window | C32: Ingangspanning venster | D32: Ventana de voltaje | E32: Eingangspannungsfenster | F32: Fourchette de tension | G32: Faixa de voltagem
A33: 30 | B33: Charge current window | C33: Laadstroom venster | D33: Ventana de corriente | E33: Ladestromfenster | F33: Fourchette de courant | G33: Faixa de corrente
A34: 31 | B34: Cable length, Module to MPPT * | C34: Kabel lengte, paneel tot MPPT * | D34: Largo de cable entre modulo y MPPT * | E34: Kabel Länge, Modul zum MPPT * | F34: Longueur cable, Paneaux à MPPT * | G34: Comprimento do cabo entre o modulo e o MPPT *
A35: 32 | B35: Cross-section: | C35: Doorsnede: | D35: Sección: | E35: Querschnitt: | F35: Section: | G35: Corte transversal:
A36: 33 | B36: * One way length | C36: * Enkele afstand | D36: * Longitud de un solo cable | E36: * Einfache Distanz | F36: * La distance simple | G36: * Distância de um só cabo
A37: 34 | B37: Are the solar modules covered with snow many periods a year? | C37: Zijn de panelen gedurende veel periodes bedekt met sneeuw? | D37: ¿Los módulos están cubiertos con nieve durante muchos períodos del año? | E37: Sind die Solar Module öfters im Jahr bedeckt mit Schnee? | F37: Les panneaux PV sont-ils souvent couverts de neige ? | G37: ¿Vai cair neve nos modulos ?
A38: 35 | B38: Yes | C38: Ja | D38: Si | E38: Ja | F38: Oui | G38: Sim
A39: 36 | B39: No | C39: Nee | D39: No | E39: Nein | F39: Non | G39: Não
A40: 37 | B40: Accepted | C40: Toegestaan | D40: Aceptado | E40: Erlaubt | F40: Accepté | G40: Aceito
A41: 38 | B41: NOT accepted | C41: NIET toegestaan | D41: NO aceptado | E41: NICHT erlaubt | F41: PAS accepté | G41: NÃO aceito
A42: 39 | B42: Attention: More than 30% oversized PV generator | C42: Attentie: Meer dan 30% overgedimensioneerde PV generator | D42: Atención, se ha sobredimensionado el generador FV más del 30% | E42: Achtung: Mehr als 30% überdimensionierte PV Generator | F42: Attention, surdimensionnement PV supérieur à 30% ! Non recommandé financièrement ! | G42: Nota: existe sobredimensionamento do gerador FV de mais do 30%
A43: 40 | B43: Coefficient support: | C43: Koefficient berekening: | D43: Calculación de coeficiente de temperatura | E43: Koeffizientenberechnung: | F43: Coefficients de température: | G43: Calculo do coeficiente de temperatura
A44: 41 | B44: If you have the voltage temperature coefficient in mV/°C, here is how to change it to %/°C | C44: Hier kunt U de spanning koeffizient van mV/°C naar %/°C omrekenen | D44: Si tiene el coeficiente de temperatura de voltaje en mV/°C, aquí es cómo cambiarlo a %/°C | E44: Hier können Sie die Spannungskoeffizient von mV/°C in %/°C wandeln | F44: Si vous avez le Coefficient de température à tension de circuit ouvert en mV/°C , voici comment changer ce coefficient en %/°C | G44: Caso tiver o coeficiente de temperatura de voltagem em mV/°C, pode ser trocado para %/°C
A45: 42 | B45: Write the Voc value in Volt: | C45: Schrijf hier de Voc waarde in Volt: | D45: Escribir el valor de Voc (voltage de circuito abierto) en voltios | E45: Schreiben Sie den Voc Wert in Volt: | F45: Ecrire la valeur de la VOC en Volt: | G45: Escreve o valor do Voc (voltagem do circuito abierto) em volts
A46: 43 | B46: Write the coefficient value in mV/°C: | C46: Schrijf hier de koefficient waarde in mV/°C: | D46: Escribir el valor de coeficiente en mV/°C: | E46: Schreiben Sie den Koeffizient Wert in mV/°C: | F46: Ecrire la valeur du coefficient en mV/°C: | G46: Escreve o valor do coeficiente em mV/°C:
A47: 44 | B47: The coefficent value in %/°C is now: | C47: De berekende koefficient in %/°C is nu: | D47: El valor de coeficiente en %/°C es ahora: | E47: Der errechneter Koeffizient in %/°C ist jetzt: | F47: La valeur du coefficient en %/°C est de: | G47: O valor do coeficiente en %/°C agora:
A48: 45 | B48: If you have the current temperature coefficient in mA/°C, here is how to change it to %/°C | C48: Hier kunt U de stroom koeffizient van mA/°C naar %/°C omrekenen | D48: Si tiene el coeficiente de temperatura actual en mA/°C, aquí es cómo cambiarlo a %/°C | E48: Hier können Sie die Stromkoeffizient von mA/°C in %/°C wandeln | F48: Si vous avez le Coefficient de température à Courant de Court-Cicuit en mA/°C, voici comment changer ce coefficient en %/°C | G48: Se tem o coeficiente de temperatura atual em mA/°C, pode ser trocado para %/°C
A49: 46 | B49: Write the Isc value in Ampere: | C49: Schrijf hier de Isc waarde in Ampere: | D49: Escribir el valor de Isc (corriente de cortocircuito) en amperios | E49: Schreiben Sie den Isc Wert in Ampere: | F49: Ecrire la valeur de Isc en Ampère: | G49: Escreve o valor do Isc (corrente de curtocircuito) em ampers
A50: 47 | B50: Write the coefficient value in mA/°C: | C50: Schrijf hier de koefficient waarde in mA/°C: | D50: Escribir el valor de coeficiente en mA/°C: | E50: Schreiben Sie den Koeffizient Wert in mA/°C: | F50: Ecrire la valeur du coefficient en mA/°C: | G50: Escreve o valor do coeficiente em mA/°C:
A51: 48 | B51: The coefficent value in %/°C is now: | C51: De berekende koefficient in %/°C is nu: | D51: El valor de coeficiente en %/°C es ahora: | E51: Der errechneter Koeffizient in %/°C ist jetzt: | F51: La valeur du coefficient en %/°C est de : | G51: O coeficiente em %/°C :
A52: 49 | B52: Warning: PV current is higher than MPPT max. input current | C52: Waarschuwing: PV stroom is hoger dan max. ingangstroom MPPT | D52: Atención: la corriente FV es superior a la máxima corriente de entrada MPPT | E52: Warnung: PV Strom ist höher als max. erlaubter Eingangstrom MPPT | F52: Attention! Le courant PV est supérieur au courant d’entrée maximum du MPPT | G52: Cuidado: A corrente FV é superior à máxima corrente de entrada do MPPT
